bitfinex-derivatives/quotes_ETHF0:USTF0_20250205
["timestamp","ask_amount","ask_price","bid_price","bid_amount"]
[1738719251358,4.1247,2745.7,2744.7,6.1858]
[1738719251657,4.1247,2745.7,2745.0,3.2078]
[1738719251963,0.0054604,2745.5,2744.9,0.0054604]
[1738719253956,3.15533019,2745.5,2744.9,0.0054604]
[1738719254853,0.0054604,2745.5,2745.0,3.2078]
[1738719255255,0.0054604,2745.5,2745.1,5.4454]
[1738719256057,0.0054604,2745.5,2745.0,3.2078]
[1738719256257,6.35766979,2745.2,2744.9,0.0054604]
[1738719256457,5.5189,2745.1,2744.9,0.0054604]
[1738719257060,3.2078,2745.0,2744.9,0.0054604]
[1738719257459,5.5189,2745.1,2744.9,0.0054604]
[1738719258463,0.58266,2745.3,2744.9,0.0054604]
[1738719258654,3.73255979,2745.2,2744.9,0.0054604]
[1738719258852,3.2078,2745.1,2744.9,0.0054604]
[1738719259260,3.2078,2745.4,2744.9,0.0054604]
[1738719259454,0.0054604,2745.5,2745.1,3.2078]
[1738719259659,0.0054604,2745.5,2745.2,2.7142]
[1738719260566,0.0054604,2745.5,2745.3,2.7214]
[1738719260766,0.0054604,2745.5,2745.4,3.2078]
[1738719261065,0.0054604,2745.5,2745.3,2.7214]
[1738719261667,0.0054604,2745.5,2745.4,3.2078]
[1738719261962,2.7241,2746.4,2745.4,11.03187481]
[1738719262162,20.0398,2746.5,2745.8,3.2078]
[1738719262363,20.0398,2746.5,2745.9,2.8683]
[1738719263062,20.0452604,2746.5,2745.9,2.8683]
[1738719264662,16.8374604,2746.5,2746.1,3.2078]
[1738719266562,16.8374604,2746.5,2745.9,2.8683]
[1738719266769,17.4198804,2746.5,2745.8,3.2078]
[1738719267061,2.6703,2746.4,2745.8,3.2078]
[1738719267362,2.6703,2746.4,2745.6,1.69620502]
[1738719267363,3.2078,2746.3,2745.6,1.69620502]
[1738719267572,6.0787,2746.3,2745.6,1.69620502]
[1738719268068,2.8709,2746.3,2745.6,1.69620502]
[1738719268269,16.8374604,2746.5,2745.8,3.2078]
[1738719268968,16.8374604,2746.5,2746.1,3.2078]
[1738719269361,0.0054604,2746.5,2746.4,3.2078]
[1738719274662,0.28406271,2747.4,2746.4,12.88200502]
[1738719274862,3.2078,2748.1,2747.2,3.14986979]
[1738719275071,3.2078,2748.1,2747.6,3.2078]
[1738719275969,3.2078,2748.7,2748.0,3.2078]
[1738719276161,2.5869,2749.4,2748.2,3.2078]
[1738719276479,0.28397552,2749.6,2748.8,3.2078]
[1738719276772,19.97786979,2749.8,2748.9,2.6273]
[1738719276958,22.68666979,2749.8,2748.9,2.6273]
[1738719277165,0.0054604,2749.6,2749.1,0.0054604]
[1738719279961,3.2132604,2749.6,2749.1,0.0054604]
[1738719280167,6.62787161,2749.6,2748.9,3.2078]
[1738719280367,3.2132604,2749.6,2748.9,3.2078]
[1738719281367,3.2132604,2749.6,2749.0,0.0054604]
[1738719281568,3.2132604,2749.6,2749.0,2.5939604]
[1738719282068,0.0054604,2749.6,2749.3,3.2078]
[1738719282863,0.0054604,2749.6,2749.3,4.90400502]
[1738719283072,3.2078,2750.1,2749.3,9.90400502]
[1738719283370,3.2078,2750.1,2749.7,3.2078]
[1738719283567,3.2078,2750.1,2749.8,5.5046]
[1738719283766,2.7393,2750.6,2750.0,3.2078]
[1738719283968,2.7393,2750.6,2749.8,5.5046]
[1738719284370,0.0054604,2750.5,2749.8,5.5046]
[1738719284777,0.0054604,2750.5,2750.0,3.2078]
[1738719285079,3.2078,2750.3,2749.7,1.69620502]
[1738719285272,2.6016,2750.4,2749.4,3.2078]
[1738719285576,0.58163,2750.2,2749.2,4.36240502]
[1738719285770,6.0468,2750.3,2749.2,4.36240502]
[1738719285969,0.58166,2750.1,2749.2,1.69620502]
[1738719286375,0.58164,2750.2,2749.2,1.69620502]
[1738719286776,6.62842,2750.3,2749.2,1.69620502]
[1738719286977,3.2078,2750.0,2749.2,1.69620502]
[1738719287179,2.8128,2749.9,2749.1,3.2078]
[1738719287476,3.2078,2749.7,2749.1,3.2078]
[1738719287671,0.58184,2749.3,2749.0,0.0054604]
[1738719287879,3.2078,2749.1,2748.0,3.2078]
[1738719288074,3.2078,2749.1,2747.8,5.3105]
[1738719288075,5.5688,2749.2,2748.7,3.2078]
[1738719288373,5.5688,2749.2,2748.3,3.2078]
[1738719289179,0.0054604,2749.0,2748.5,0.0054604]
[1738719289877,0.58191,2748.9,2748.5,0.0054604]
[1738719290074,3.2078,2748.7,2748.5,0.0054604]
[1738719291877,3.2078,2748.7,2748.0,3.2078]
[1738719292084,6.62241121,2748.4,2747.7,3.2078]
[1738719292274,0.58206,2748.2,2747.7,3.2078]
[1738719292472,2.8615,2748.3,2747.7,3.2078]
[1738719293078,2.8615,2748.3,2747.7,3.2132604]
[1738719294775,3.78988,2748.1,2747.7,0.0054604]
[1738719295783,3.2078,2747.8,2747.7,0.0054604]
[1738719295983,3.2078,2747.8,2746.6,3.2078]
[1738719295984,0.58216,2747.7,2746.6,3.2078]
[1738719296280,3.2078,2747.5,2746.6,3.2078]
[1738719296482,3.2078,2747.5,2746.9,3.2078]
[1738719296979,3.2078,2747.5,2746.9,3.2132604]
[1738719297184,3.2132604,2747.5,2746.9,3.2132604]
[1738719299089,2.7238,2747.4,2746.9,3.2132604]
[1738719299389,6.12713,2747.4,2746.9,0.0054604]
[1738719299793,3.79008,2747.2,2746.9,0.0054604]
[1738719300081,6.62241121,2747.2,2746.5,3.2078]
[1738719300287,0.5823,2747.1,2746.5,3.2078]
[1738719300488,6.62241121,2747.2,2746.5,3.2078]
[1738719300692,3.13762783,2746.8,2746.5,3.2078]
[1738719302083,3.2078,2747.2,2746.5,3.2078]
[1738719304981,3.13762783,2747.1,2746.5,3.2078]
[1738719305183,3.2078,2747.2,2746.5,3.2078]
[1738719306585,3.71990783,2747.1,2746.5,3.2078]
[1738719306790,3.13762783,2747.1,2746.5,3.2078]
[1738719306987,0.58232,2747.0,2746.5,3.2078]
[1738719307294,3.71992783,2747.1,2746.5,3.2078]
[1738719307493,3.13762783,2747.1,2746.5,3.2078]
[1738719307687,3.71998783,2746.8,2746.5,3.2078]
[1738719307889,0.58239,2746.6,2745.5,6.1858]
[1738719308091,3.72014783,2746.0,2745.2,3.2078]
[1738719308392,3.72014783,2746.0,2744.9,8.0545]
[1738719308694,0.0054604,2745.9,2744.9,8.0545]
[1738719309389,0.0054604,2745.9,2745.3,3.2078]
[1738719310798,0.0054604,2745.9,2745.0,3.2078]
[1738719310988,3.2132604,2745.9,2745.0,3.2078]
[1738719311784,3.2078,2745.6,2745.0,3.2078]
[1738719311996,6.34542783,2745.6,2745.0,3.2078]
[1738719312194,0.58265,2745.4,2745.0,3.2078]
[1738719312694,7.74142783,2745.6,2745.0,3.2078]
[1738719312992,0.58264,2745.5,2745.0,3.2078]
[1738719313185,7.74142783,2745.6,2745.0,3.2078]
[1738719313394,3.2078,2745.6,2745.0,3.2078]
[1738719313699,3.2132604,2745.9,2745.0,6.0097]
[1738719314094,0.58256,2745.8,2745.0,6.0097]
[1738719314289,6.35088823,2745.9,2745.0,6.0097]
[1738719314597,6.35088823,2745.9,2745.1,2.6805]
[1738719315294,6.35088823,2745.9,2745.3,3.2078]
[1738719315601,6.35088823,2745.9,2745.1,2.6805]
[1738719316192,6.35088823,2745.9,2745.3,3.2078]
[1738719316193,3.2132604,2745.9,2745.3,3.2078]
[1738719316886,6.35088823,2745.9,2745.3,3.2078]
[1738719317090,6.34542783,2745.6,2745.1,4.37670502]
[1738719317291,6.34542783,2745.6,2745.1,1.69620502]
[1738719317892,5.3892,2745.8,2745.1,1.69620502]
[1738719320799,3.2132604,2745.9,2745.3,3.2078]
[1738719321589,0.0054604,2745.9,2745.3,3.2078]
[1738719322302,0.0054604,2745.9,2745.6,3.2078]
[1738719322601,20.0298,2747.0,2745.7,7.67563285]
[1738719322798,20.0298,2747.0,2746.3,3.2078]
[1738719323295,20.0298,2747.0,2746.0,3.2078]
[1738719323496,3.13762783,2746.8,2746.0,3.2078]
[1738719323893,0.0054604,2746.7,2746.1,0.0054604]
[1738719324096,3.2132604,2746.7,2746.1,0.0054604]
[1738719324301,0.0054604,2746.7,2746.1,0.0054604]
[1738719324597,0.0054604,2746.7,2746.3,3.2078]
[1738719325100,0.0054604,2746.7,2746.6,3.2078]
[1738719325298,3.2078,2747.3,2746.6,6.34542783]
[1738719325599,5.99812783,2748.0,2746.6,6.34542783]
[1738719325600,5.99812783,2748.0,2747.2,3.2078]
[1738719325804,5.99812783,2748.0,2746.9,3.2078]
[1738719326099,3.2078,2748.2,2747.1,3.2078]
[1738719326302,3.2078,2747.8,2747.1,3.2078]
[1738719326703,3.2078,2747.8,2747.2,0.0054604]
[1738719327596,3.2078,2747.8,2747.4,3.2078]
[1738719327798,3.2078,2747.8,2747.5,2.7921]
[1738719328800,3.2078,2747.8,2747.6,2.6713]
[1738719329199,3.2078,2747.8,2747.2,0.0054604]
[1738719329800,3.2078,2747.5,2747.2,0.0054604]
[1738719330004,3.71978783,2747.7,2747.2,0.0054604]
[1738719330005,3.13762783,2747.7,2747.2,0.0054604]
[1738719330498,3.71978783,2747.7,2747.2,0.0054604]
[1738719330701,3.13762783,2747.4,2747.2,0.0054604]
[1738719333807,3.2078,2747.5,2747.2,0.0054604]
[1738719334201,5.3877,2747.8,2747.2,3.2132604]
[1738719334202,2.7081,2747.8,2747.2,3.2132604]
[1738719334900,0.0054604,2747.9,2747.6,3.2078]
[1738719335605,4.80034,2749.2,2747.6,3.2078]
[1738719335606,3.2078,2749.4,2747.8,3.13762783]
[1738719335800,9.17072783,2749.8,2748.8,3.2078]
[1738719336406,6.34542783,2749.5,2748.7,3.2078]
[1738719336601,6.62358485,2749.5,2749.0,0.0054604]
[1738719337207,3.2078,2749.2,2749.0,0.0054604]
[1738719339004,0.0054604,2749.6,2749.0,0.0054604]
[1738719340409,0.0054604,2749.6,2749.1,3.2078]
[1738719340908,0.0054604,2749.6,2749.0,0.0054604]
[1738719341211,3.78961,2749.4,2749.0,0.0054604]
[1738719341517,3.78967,2749.1,2748.5,3.2078]
[1738719341709,2.8603,2749.0,2748.5,3.2078]
[1738719342507,2.8603,2749.0,2747.7,1.69620502]
[1738719342508,6.0681,2749.0,2747.8,3.2078]
[1738719342711,6.0681,2749.0,2748.5,0.0054604]
[1738719342712,6.64999,2749.0,2748.5,0.0054604]
[1738719344415,3.2078,2748.6,2748.5,0.0054604]
[1738719345910,8.2078,2748.6,2748.5,0.0054604]
[1738719346118,0.58204,2748.3,2747.3,3.2078]
[1738719346319,3.2078,2747.9,2747.3,3.2078]
[1738719346813,0.58206,2748.2,2747.3,3.2078]
[1738719347021,3.2078,2748.8,2748.1,3.2078]
[1738719347514,0.0054604,2748.7,2748.1,3.2078]
[1738719347716,3.2078,2748.5,2747.5,0.0054604]
[1738719347917,3.2078,2748.2,2747.5,0.0054604]
[1738719348217,3.2078,2748.2,2747.6,3.2078]
[1738719348413,1.393,2748.4,2747.6,3.2078]
[1738719349023,1.393,2748.4,2747.5,0.0054604]
[1738719349217,1.393,2748.4,2747.8,3.2078]
[1738719351618,3.2078,2748.2,2747.5,0.0054604]
[1738719352016,4.5998,2748.5,2747.6,3.2078]
[1738719352217,5.18179,2748.5,2747.5,0.0054604]
[1738719352818,3.2078,2748.2,2747.5,0.0054604]
[1738719353215,1.392,2748.5,2747.6,3.2078]
[1738719353216,4.5998,2748.5,2747.6,3.2078]
[1738719353416,4.5998,2748.5,2747.5,0.0054604]
[1738719354116,4.5998,2748.5,2747.6,3.2078]
[1738719356420,3.2078,2748.2,2747.6,3.2078]
[1738719357424,4.5998,2748.5,2747.6,3.2078]
[1738719357817,3.2078,2748.5,2748.0,3.2078]
[1738719358015,2.781,2748.6,2748.0,3.2078]
[1738719358618,0.0054604,2748.7,2748.0,3.2078]
[1738719358814,0.0054604,2748.7,2748.1,5.3873]
[1738719359020,0.0054604,2748.7,2748.3,3.2078]
[1738719360531,0.58197,2748.6,2747.9,4.90400502]
[1738719360728,3.2078,2748.4,2747.9,3.2078]
[1738719360928,6.34002033,2748.4,2747.9,3.2078]
[1738719361232,0.58204,2748.3,2747.9,3.2078]
[1738719361425,6.34002033,2748.4,2747.9,3.2078]
[1738719361426,3.13222033,2748.1,2747.9,3.2078]
[1738719361732,3.2078,2748.0,2747.5,0.0054604]
[1738719361920,5.8571,2748.0,2747.5,0.0054604]
[1738719363619,3.2078,2747.7,2747.5,0.0054604]
[1738719363818,6.4392,2748.0,2747.5,0.0054604]
[1738719364930,0.58211,2747.9,2747.5,0.0054604]
[1738719365422,5.8571,2748.0,2747.5,0.0054604]
[1738719365820,3.2078,2747.6,2747.5,0.0054604]
[1738719369930,8.2078,2747.6,2747.5,0.0054604]
[1738719370131,0.58224,2747.3,2746.5,3.2078]
[1738719370330,4.8157332,2747.8,2746.5,3.2078]
[1738719370331,6.34002033,2747.2,2746.5,3.2078]
[1738719370529,6.92228033,2747.2,2746.5,3.2078]
[1738719370724,6.34002033,2747.2,2746.5,3.2078]
[1738719371432,0.0054604,2747.1,2746.8,3.2078]
[1738719371631,0.0054604,2747.1,2746.9,3.2631]
[1738719371830,3.13222033,2747.8,2746.9,3.2631]
[1738719372025,4.2154,2747.9,2747.1,3.2078]
[1738719372333,3.13222033,2747.8,2746.9,6.4709]
[1738719373122,0.0054604,2747.6,2747.1,0.0054604]
[1738719374135,0.0054604,2747.6,2746.3,3.13222033]
[1738719374136,6.92228033,2747.2,2746.0,2.978]
[1738719374331,6.34002033,2746.8,2746.1,3.2078]
[1738719374527,6.34002033,2746.8,2745.8,3.2078]
[1738719374929,3.2078,2746.5,2745.8,3.2078]
[1738719375132,6.34002033,2746.8,2745.8,4.2826]
[1738719375435,6.34002033,2746.8,2746.1,3.2078]
[1738719375834,3.2078,2746.8,2746.1,3.2078]
[1738719376431,6.66412033,2747.1,2746.1,3.2078]
[1738719376432,1.391,2747.0,2746.1,3.2078]
[1738719376634,1.0811,2747.1,2746.5,3.2078]
[1738719376834,3.2078,2747.5,2746.6,1.0748]
[1738719377029,3.13222033,2747.1,2746.5,3.2078]
[1738719377337,0.58243,2746.5,2746.0,1.0748]
[1738719377534,3.13222033,2746.2,2745.7,3.2078]
[1738719378232,4.14338073,2746.2,2745.7,3.2078]
[1738719380126,4.14338073,2746.2,2745.2,5.02]
[1738719380334,4.14338073,2746.2,2745.3,3.2078]
[1738719381135,1.0111604,2746.2,2745.3,3.2078]
[1738719381443,1.0111604,2746.2,2745.2,5.02]
[1738719381444,0.0054604,2746.2,2745.8,3.2078]
[1738719382637,0.0054604,2746.2,2745.5,3.2078]
[1738719382835,3.13768073,2746.2,2745.5,3.2078]
[1738719383030,3.13222033,2745.9,2745.5,3.2078]
[1738719383639,3.2078,2745.7,2745.2,4.2305]
[1738719384036,3.13222033,2745.6,2745.2,3.2078]
[1738719384237,3.2078,2745.4,2744.8,3.2078]
[1738719384641,3.13222033,2745.3,2744.8,3.2078]
[1738719384832,3.71489033,2745.3,2744.8,3.2078]
[1738719385033,3.13222033,2745.3,2744.8,3.2078]
[1738719385537,3.13222033,2745.3,2744.7,2.2896]
[1738719385742,1.0124,2745.5,2744.7,2.2896]
[1738719385743,1.0124,2745.5,2744.7,5.4974]
[1738719390142,3.13222033,2745.3,2744.7,5.4974]
[1738719390340,3.13222033,2745.3,2744.7,3.2078]
[1738719390538,3.13222033,2745.0,2744.4,3.2078]
[1738719390745,6.34002033,2745.0,2744.4,3.2078]
[1738719391043,6.92276033,2745.0,2744.4,3.2078]
[1738719391241,6.34002033,2745.0,2744.4,3.2078]
[1738719391644,3.2078,2745.0,2744.4,3.2078]
[1738719394244,7.73102033,2745.3,2744.4,4.2145]
[1738719394547,3.2078,2745.0,2744.4,4.2145]
[1738719395250,6.34002033,2745.0,2744.4,4.2145]
[1738719395448,6.34002033,2745.0,2744.4,1.0067]
[1738719395642,6.34002033,2745.0,2744.3,1.094]
[1738719395842,6.92276033,2745.0,2744.3,1.094]
[1738719396241,6.92276033,2745.0,2744.2,1.0072]
[1738719396242,3.71501033,2744.7,2744.2,1.0072]
[1738719396454,3.13222033,2744.4,2743.7,0.8666]
[1738719396755,5.10608033,2744.4,2743.7,0.8666]
[1738719396952,3.2078,2744.0,2743.7,0.8666]
[1738719397150,3.2078,2744.0,2743.6,3.2078]
[1738719397348,3.2078,2744.0,2743.5,0.8386]
[1738719397652,3.2078,2744.0,2742.7,3.13222033]
[1738719397653,6.34002033,2743.6,2742.6,3.2078]
[1738719397844,6.34002033,2743.3,2742.6,3.2078]
[1738719398752,6.34002033,2742.9,2741.3,1.69620502]
[1738719398953,3.13222033,2742.2,2741.4,3.2078]
[1738719399140,3.13222033,2741.9,2741.4,3.2078]
[1738719399347,3.2078,2742.1,2741.3,1.7987]
[1738719399745,0.00547086,2742.0,2741.3,1.7987]
[1738719399945,0.00547086,2742.0,2741.5,3.2078]
[1738719400146,0.00547086,2742.0,2741.3,1.7987]
[1738719400352,0.00547086,2742.0,2741.5,3.2078]
[1738719401149,0.00547086,2742.0,2741.8,3.2078]
[1738719401351,4.5988,2742.8,2741.8,3.2078]
[1738719401856,4.5988,2742.8,2742.2,3.2078]
[1738719402149,4.5988,2742.8,2742.1,3.2078]
[1738719402448,3.2078,2743.1,2742.4,3.2078]
[1738719402752,0.00547086,2742.7,2742.4,3.2078]
[1738719403450,0.00547086,2742.7,2742.2,0.84517086]
[1738719404449,3.2078,2742.5,2742.2,0.84517086]
[1738719404648,3.2078,2742.5,2742.2,0.00547086]
[1738719404843,3.43294873,2742.6,2742.2,0.00547086]
[1738719405049,4.0914,2742.6,2742.2,0.00547086]
[1738719405250,0.00547086,2742.7,2742.2,0.00547086]
[1738719407350,0.00547086,2742.7,2742.2,3.21327086]
[1738719407650,0.00547086,2742.7,2742.6,3.2078]
[1738719408357,3.21327086,2742.7,2742.2,0.00547086]
[1738719410856,4.60427086,2742.7,2742.2,0.00547086]
[1738719412151,5.18749086,2742.7,2742.2,0.00547086]
[1738719412350,3.2078,2742.4,2742.2,0.00547086]
[1738719416357,0.00547086,2742.7,2742.2,3.21327086]
[1738719416556,0.00547086,2742.7,2742.3,0.8893]
[1738719416756,0.00547086,2742.7,2742.3,1.7317]
[1738719417661,0.00547086,2742.7,2742.3,2.5981]
[1738719418755,0.00547086,2742.7,2742.3,5.8059]
[1738719420155,0.00547086,2742.7,2742.3,4.9395]
[1738719420358,0.00547086,2742.7,2742.2,0.00547086]
[1738719420359,3.2078,2742.4,2742.2,0.00547086]
[1738719422859,3.79109,2742.4,2742.2,0.00547086]
[1738719423458,0.5833,2742.3,2742.2,0.00547086]
[1738719423658,3.79108,2742.4,2742.2,0.00547086]
[1738719424062,3.2078,2742.4,2742.2,0.00547086]
[1738719425567,4.5374988,2742.5,2742.2,0.00547086]
[1738719427265,3.2078,2742.4,2742.2,0.00547086]
[1738719428265,0.8971,2742.6,2742.2,0.00547086]
[1738719429862,0.00547086,2742.7,2742.3,3.2078]
[1738719430066,0.00547086,2742.7,2742.4,0.7914]
[1738719430366,0.00547086,2742.7,2742.5,0.7876]
[1738719430569,3.9322988,2743.4,2742.6,3.2078]
[1738719430570,3.2078,2743.3,2742.6,3.2078]
[1738719430760,3.2078,2743.3,2742.6,3.9883]
[1738719431266,3.9322988,2743.4,2742.6,3.9883]
[1738719431763,0.00547086,2743.3,2742.6,3.9883]
[1738719432363,3.21327086,2743.3,2742.6,3.2078]
[1738719432564,3.21327086,2743.3,2742.5,0.7876]
[1738719434765,3.21327086,2743.3,2742.6,3.2078]
[1738719434963,0.00547086,2743.3,2743.0,3.2078]
[1738719435268,3.2078,2743.2,2742.5,0.7876]
[1738719435463,3.2078,2742.9,2742.5,0.7876]
[1738719435668,3.1474988,2742.7,2742.5,0.7876]
[1738719435966,3.2078,2742.9,2742.5,0.7876]
[1738719436469,3.2078,2742.9,2742.2,0.79677086]
[1738719436772,3.79097,2742.9,2742.2,0.79677086]
[1738719436970,3.1474988,2742.7,2742.2,0.79677086]
[1738719437365,3.2078,2742.9,2742.2,0.79677086]
[1738719437973,3.2078,2742.9,2742.2,4.00457086]
[1738719440177,3.1474988,2742.4,2742.2,0.00547086]
[1738719440570,0.7396,2742.3,2742.2,0.00547086]
[1738719441381,0.58334,2742.2,2741.3,0.8055]
[1738719441576,6.3552988,2741.8,2741.3,0.8055]
[1738719441772,3.2078,2741.8,2741.3,0.8055]
[1738719442074,6.3552988,2741.8,2741.3,0.8055]
[1738719442267,3.1474988,2741.5,2741.2,3.2078]
[1738719442464,3.1474988,2741.5,2741.3,0.00547086]
[1738719443877,6.36076966,2741.8,2741.3,0.00547086]
[1738719444076,6.36076966,2741.8,2741.3,0.78127086]
[1738719444077,3.21327086,2741.8,2741.3,0.78127086]
[1738719444378,0.00547086,2741.8,2741.3,0.78127086]
[1738719445279,0.00547086,2741.8,2741.5,3.2078]
[1738719452972,0.00547086,2741.8,2741.3,0.78127086]
[1738719453178,6.94418966,2741.8,2741.3,0.78127086]
[1738719453375,6.36076966,2741.8,2741.3,0.78127086]
[1738719454184,6.94417966,2741.8,2741.3,0.78127086]
[1738719454378,6.36076966,2741.8,2741.3,0.78127086]
[1738719454578,6.9387788,2741.5,2741.3,0.00547086]
[1738719454787,6.9387788,2741.5,2740.8,3.2078]
[1738719454788,0.58352,2741.3,2740.8,3.2078]
[1738719454986,3.1474988,2741.1,2740.5,0.6216]
[1738719455593,3.1474988,2741.1,2740.5,3.8294]
[1738719455892,3.9538988,2741.4,2740.5,3.8294]
[1738719456094,3.9538988,2741.4,2740.8,3.2078]
[1738719456293,0.8064,2741.4,2740.8,3.2078]
[1738719456997,3.9538988,2741.4,2740.5,5.52560502]
[1738719457390,3.1474988,2741.1,2740.5,3.8294]
[1738719457591,3.2078,2740.6,2739.2,3.2078]
[1738719457787,3.1474988,2740.0,2739.5,3.2078]
[1738719457994,3.1474988,2740.0,2739.4,3.8047]
[1738719458389,0.00547086,2740.1,2739.4,3.8047]
[1738719458890,0.00547086,2740.1,2740.0,3.2078]
[1738719459199,1.388,2740.8,2740.0,3.2078]
[1738719459387,1.388,2740.8,2739.9,3.2078]
[1738719459388,3.1474988,2740.6,2739.9,3.2078]
[1738719459591,3.1474988,2740.6,2739.6,3.2078]
[1738719459796,0.6308,2740.5,2739.6,3.2078]
[1738719460498,0.00547086,2740.3,2739.8,0.00547086]
[1738719461800,0.00547086,2740.3,2739.9,3.2078]
[1738719462390,0.00547086,2740.3,2740.0,0.6103]
[1738719463594,0.00547086,2740.3,2740.1,0.6392]
[1738719464698,3.1474988,2740.9,2740.2,3.2078]
[1738719464894,0.6361,2741.0,2740.5,3.2078]
[1738719465593,18.246,2741.1,2740.5,3.2078]
[1738719465803,0.00547086,2741.0,2740.5,3.2078]
[1738719466693,0.00547086,2741.0,2740.8,3.2078]
[1738719466894,0.00547086,2741.0,2740.9,0.6046]
[1738719467997,0.00547086,2741.0,2740.9,1.2309]
[1738719469899,0.00547086,2741.0,2740.9,1.8464]
[1738719471099,6.3552988,2741.8,2740.9,1.8464]
[1738719471307,0.646,2741.9,2741.6,3.2078]
[1738719471803,3.1474988,2742.1,2741.6,3.2078]
[1738719472211,3.1474988,2742.1,2741.7,0.6432]
[1738719472408,3.15296966,2742.1,2741.7,0.6432]
[1738719474300,3.15296966,2742.1,2741.8,0.6461]
[1738719474700,0.00547086,2742.1,2741.8,0.6461]
[1738719477111,0.00547086,2742.1,2741.9,3.2078]
[1738719478805,3.2078,2742.5,2741.9,3.8008]
[1738719479507,16.862,2742.6,2742.3,3.2078]
[1738719479810,0.00547086,2742.5,2742.3,3.2078]
[1738719480412,0.00547086,2742.5,2742.0,3.2078]
[1738719481098,0.60877086,2742.5,2742.0,3.2078]
[1738719481304,0.60877086,2742.5,2741.7,0.6432]
[1738719481305,3.1474988,2742.1,2741.7,3.851]
[1738719481498,3.2078,2742.0,2741.7,0.6432]
[1738719482710,0.6033,2741.9,2741.6,0.00547086]
[1738719482910,3.2078,2742.3,2741.6,0.00547086]
[1738719483114,3.8111,2742.3,2741.6,0.00547086]
[1738719483307,3.1474988,2742.1,2741.6,0.00547086]
[1738719483507,3.1474988,2741.8,2741.6,0.00547086]
[1738719483712,0.6033,2741.7,2741.6,0.00547086]
[1738719486209,3.2078,2742.0,2741.6,0.00547086]
[1738719487317,3.1474988,2741.8,2741.6,0.00547086]
[1738719487807,0.5829,2741.7,2741.6,0.00547086]
[1738719490814,3.2078,2742.0,2741.6,0.00547086]
[1738719493707,0.23037086,2742.5,2741.7,3.2078]
[1738719493708,0.00547086,2742.5,2741.7,3.2078]
[1738719493924,0.00547086,2742.5,2742.2,3.2078]
[1738719494246,0.00547086,2742.5,2742.3,0.5954]
[1738719494556,3.1474988,2742.4,2741.8,0.6185]
[1738719494841,3.1474988,2742.4,2741.8,3.8263]
[1738719496230,3.1474988,2742.1,2741.6,0.00547086]
[1738719496433,3.1474988,2741.8,2741.6,0.00547086]
[1738719497635,1.385,2741.7,2741.6,0.00547086]
[1738719499421,0.6177,2742.0,2741.6,0.00547086]
[1738719499727,0.6177,2742.0,2741.6,3.21327086]
[1738719501021,3.1474988,2742.4,2741.9,3.2078]
[1738719502231,3.21327086,2742.5,2741.9,4.90400502]
[1738719503830,3.1474988,2742.4,2741.9,4.90400502]
[1738719504125,3.1474988,2742.1,2741.9,1.69620502]
[1738719504329,3.1474988,2742.1,2741.6,3.21327086]
[1738719506033,1.384,2742.4,2741.6,3.21327086]
[1738719506034,3.1474988,2742.4,2741.6,3.21327086]
[1738719507727,0.00547086,2742.5,2742.3,3.2078]
[1738719507932,0.00547086,2742.5,2742.4,1.2165]
[1738719510527,0.00547086,2742.5,2741.8,4.90400502]
[1738719510724,3.1474988,2742.1,2741.8,3.2078]
[1738719511733,3.1474988,2742.4,2741.8,3.2078]
[1738719512229,3.1474988,2742.1,2741.8,3.2078]
[1738719512430,0.59,2742.0,2741.8,3.2078]
[1738719512731,0.59,2742.0,2741.7,0.6012]
[1738719514329,3.1474988,2741.8,2741.7,0.6012]
[1738719514631,3.1474988,2741.8,2741.6,0.00547086]
[1738719514930,3.2078,2741.7,2741.6,0.00547086]
[1738719516337,0.59,2742.0,2741.6,3.21327086]
[1738719516631,0.59,2742.0,2741.7,1.2422]
[1738719516832,3.2078,2742.1,2741.7,1.2422]
[1738719518731,6.3552988,2742.4,2741.9,3.2078]
[1738719519125,6.3552988,2742.4,2741.7,1.8406]
[1738719521436,0.00547086,2742.5,2741.7,1.8406]
[1738719521749,0.00547086,2742.5,2742.3,3.2078]
[1738719522040,0.00547086,2742.5,2742.4,0.6385]
[1738719523137,0.00547086,2742.5,2742.0,3.2078]
[1738719523138,3.21327086,2742.5,2742.0,3.2078]
[1738719523338,3.1474988,2742.2,2742.0,3.2078]
[1738719523645,0.6131,2742.4,2742.0,3.2078]
[1738719524441,3.1474988,2742.2,2742.0,3.2078]
[1738719524633,0.6131,2742.4,2742.0,3.2078]
[1738719524634,2.51195891,2742.1,2742.0,3.2078]
[1738719526036,2.51195891,2742.1,2741.9,0.6385]
[1738719526432,3.12505891,2742.4,2741.9,0.6385]
[1738719526643,0.00547086,2742.5,2742.1,3.2078]
[1738719528442,0.00547086,2742.5,2742.4,3.2078]
[1738719528746,3.09135891,2743.3,2742.4,3.2078]
[1738719529044,3.09135891,2743.3,2742.1,2.51195891]
[1738719529045,3.09135891,2743.3,2742.7,3.2078]
[1738719529944,3.09682977,2743.3,2742.7,3.2078]
[1738719530145,2.51195891,2743.0,2742.7,3.2078]
[1738719530645,3.73041692,2743.3,2742.7,3.2078]
[1738719531941,3.73041692,2743.3,2742.8,0.6085]
[1738719532144,3.14554606,2743.0,2742.8,0.6085]
[1738719532749,0.81447086,2743.3,2742.8,3.8163]
[1738719532750,0.00547086,2743.3,2742.8,3.8163]
[1738719533247,0.00547086,2743.3,2742.9,0.6339]
[1738719533953,0.00547086,2743.3,2743.1,3.2078]
[1738719534147,0.00547086,2743.3,2743.2,0.5955]
[1738719536252,0.00547086,2743.3,2743.1,3.2078]
[1738719536448,0.64497086,2743.3,2743.1,3.2078]
[1738719538550,3.85277086,2743.3,2743.0,0.00547086]
[1738719538754,3.14554606,2743.1,2743.0,0.00547086]
[1738719540746,0.64497086,2743.3,2743.0,0.00547086]
[1738719541653,0.00547086,2743.3,2743.1,3.2078]
[1738719541849,0.00547086,2743.3,2743.0,0.00547086]
[1738719542350,0.00547086,2743.3,2743.1,3.2078]
[1738719543655,3.14554606,2744.0,2743.1,3.2078]
[1738719543849,3.14554606,2744.0,2743.4,3.2078]
[1738719544159,3.14554606,2744.0,2743.5,0.5847]
[1738719544551,3.14554606,2743.7,2743.5,0.5847]